[Event "Late-Titled-Tuesday-Blitz-September-19-2023"]
[Site "Chess.com"]
[Date "2023.09.19"]
[Round "3"]
[White "HamedWafa4"]
[Black "StarkyNZ"]
[Result "1-0"]
[WhiteElo "2649"]
[BlackElo "2308"]
[TimeControl "180+1"]
[EndTime "14:23:29 PDT"]
[Termination "HamedWafa4 won by resignation"]

1. e4 {[%clk 0:03:00.9]} 1... e6 {[%clk 0:02:57.7]} 2. d4 {[%clk 0:02:58.5]}
2... d5 {[%clk 0:02:58.3]} 3. e5 {[%clk 0:02:58.2]} 3... c5 {[%clk 0:02:58.6]}
4. c3 {[%clk 0:02:58.6]} 4... Nc6 {[%clk 0:02:59.1]} 5. Nf3 {[%clk 0:02:58.8]}
5... Qb6 {[%clk 0:02:59.7]} 6. Be2 {[%clk 0:02:58.7]} 6... cxd4 {[%clk 0:03:00]}
7. cxd4 {[%clk 0:02:58.5]} 7... Bd7 {[%clk 0:03:00.9]} 8. O-O {[%clk 0:02:57.6]}
8... Nge7 {[%clk 0:02:59.5]} 9. Na3 {[%clk 0:02:57.2]} 9... Nf5 {[%clk
0:02:58.5]} 10. Nc2 {[%clk 0:02:57.1]} 10... Nb4 {[%clk 0:02:57.5]} 11. Ne3
{[%clk 0:02:56.2]} 11... Rc8 {[%clk 0:02:52.5]} 12. Nxf5 {[%clk 0:02:53.7]}
12... exf5 {[%clk 0:02:52.8]} 13. Bf4 {[%clk 0:02:41.3]} 13... h6 {[%clk
0:02:49.7]} 14. h4 {[%clk 0:02:40]} 14... Be7 {[%clk 0:02:48.3]} 15. h5 {[%clk
0:02:38.2]} 15... O-O {[%clk 0:02:44]} 16. a3 {[%clk 0:02:36.7]} 16... Nc6
{[%clk 0:02:42.7]} 17. b4 {[%clk 0:02:35.7]} 17... Nd8 {[%clk 0:02:42]} 18. Bd3
{[%clk 0:02:29.8]} 18... Be6 {[%clk 0:02:39.9]} 19. Qd2 {[%clk 0:02:25.8]} 19...
Kh7 {[%clk 0:02:34.8]} 20. g4 {[%clk 0:02:19.3]} 20... g6 {[%clk 0:02:26.4]} 21.
gxf5 {[%clk 0:02:18.4]} 21... gxf5 {[%clk 0:02:25.9]} 22. Kh2 {[%clk 0:02:16.4]}
22... Rg8 {[%clk 0:02:20]} 23. Rg1 {[%clk 0:02:14.3]} 23... Nc6 {[%clk
0:02:18.7]} 24. Bxh6 {[%clk 0:02:10]} 24... Kh8 {[%clk 0:02:13.5]} 25. Bf8
{[%clk 0:01:40.5]} 25... Bxf8 {[%clk 0:02:09.4]} 26. Rxg8+ {[%clk 0:01:38.8]}
26... Kxg8 {[%clk 0:02:09.4]} 27. Rg1+ {[%clk 0:01:35.9]} 27... Kh8 {[%clk
0:02:05.1]} 28. Qg5 {[%clk 0:01:35.1]} 28... Ne7 {[%clk 0:01:56.3]} 29. Qf6+
{[%clk 0:01:31.9]} 29... Kh7 {[%clk 0:01:56.5]} 30. Ng5+ {[%clk 0:01:31.5]}
30... Kg8 {[%clk 0:01:56.5]} 1-0

[Event "Late-Titled-Tuesday-Blitz-September-19-2023"]
[Site "Chess.com"]
[Date "2023.09.19"]
[Round "3"]
[White "AyMitecK"]
[Black "BrandonJacobson"]
[Result "0-1"]
[WhiteElo "2503"]
[BlackElo "2907"]
[TimeControl "180+1"]
[EndTime "14:23:29 PDT"]
[Termination "BrandonJacobson won by resignation"]

1. e4 {[%clk 0:03:00.2]} 1... g6 {[%clk 0:02:59]} 2. d4 {[%clk 0:02:59.8]} 2...
Bg7 {[%clk 0:02:59.9]} 3. Nc3 {[%clk 0:02:59.5]} 3... d6 {[%clk 0:02:59.3]} 4.
Be3 {[%clk 0:03:00.4]} 4... a6 {[%clk 0:02:59.5]} 5. a4 {[%clk 0:02:59.8]} 5...
Nc6 {[%clk 0:02:59.7]} 6. h4 {[%clk 0:02:59.5]} 6... h5 {[%clk 0:02:57.5]} 7.
Be2 {[%clk 0:02:59]} 7... e5 {[%clk 0:02:55.9]} 8. d5 {[%clk 0:02:58.5]} 8...
Nd4 {[%clk 0:02:56.3]} 9. Nf3 {[%clk 0:02:58.3]} 9... Nxe2 {[%clk 0:02:55.7]}
10. Nxe2 {[%clk 0:02:57.8]} 10... Bg4 {[%clk 0:02:56.6]} 11. Nd2 {[%clk
0:02:57.8]} 11... c6 {[%clk 0:02:53.2]} 12. f3 {[%clk 0:02:57.5]} 12... Bd7
{[%clk 0:02:52]} 13. c4 {[%clk 0:02:58]} 13... Bh6 {[%clk 0:02:44.1]} 14. Bxh6
{[%clk 0:02:54.3]} 14... Nxh6 {[%clk 0:02:44.2]} 15. Qb3 {[%clk 0:02:51]} 15...
O-O {[%clk 0:02:41.6]} 16. a5 {[%clk 0:02:47.5]} 16... Rb8 {[%clk 0:02:40.1]}
17. g4 {[%clk 0:02:42.7]} 17... hxg4 {[%clk 0:02:39.6]} 18. h5 {[%clk
0:02:43.4]} 18... Qg5 {[%clk 0:02:37.6]} 19. hxg6 {[%clk 0:02:42.3]} 19... fxg6
{[%clk 0:02:37.7]} 20. c5 {[%clk 0:02:35.5]} 20... cxd5 {[%clk 0:02:26.7]} 21.
Qxd5+ {[%clk 0:02:33.8]} 21... Kg7 {[%clk 0:02:27.1]} 22. Qxd6 {[%clk
0:02:32.2]} 22... Rbd8 {[%clk 0:02:25.9]} 23. O-O-O {[%clk 0:02:05.8]} 23... Bb5
{[%clk 0:02:25.2]} 24. f4 {[%clk 0:01:43.9]} 24... exf4 {[%clk 0:02:22.7]} 25.
Nf3 {[%clk 0:01:33.2]} 25... gxf3 {[%clk 0:02:17.6]} 26. Qc7+ {[%clk 0:01:32.6]}
26... Rf7 {[%clk 0:02:17.2]} 27. Qxd8 {[%clk 0:01:31.4]} 27... Qxd8 {[%clk
0:02:17.2]} 28. Rxd8 {[%clk 0:01:30.1]} 28... fxe2 {[%clk 0:02:18.1]} 29. Kd2
{[%clk 0:01:24.4]} 29... f3 {[%clk 0:02:17.8]} 30. Rd6 {[%clk 0:01:07.9]} 30...
f2 {[%clk 0:02:15.9]} 0-1

[Event "Late-Titled-Tuesday-Blitz-September-19-2023"]
[Site "Chess.com"]
[Date "2023.09.19"]
[Round "3"]
[White "schachlana"]
[Black "maurovargas01"]
[Result "1-0"]
[WhiteElo "2346"]
[BlackElo "1870"]
[TimeControl "180+1"]
[EndTime "14:23:42 PDT"]
[Termination "schachlana won by resignation"]

1. d4 {[%clk 0:02:58.3]} 1... d5 {[%clk 0:02:58.1]} 2. Nf3 {[%clk 0:02:58.3]}
2... c6 {[%clk 0:02:56.1]} 3. g3 {[%clk 0:02:58.8]} 3... Bg4 {[%clk 0:02:53.5]}
4. Bg2 {[%clk 0:02:59.1]} 4... e6 {[%clk 0:02:53.3]} 5. Ne5 {[%clk 0:02:58]}
5... Bh5 {[%clk 0:02:52.5]} 6. g4 {[%clk 0:02:54]} 6... f6 {[%clk 0:02:49.4]} 7.
gxh5 {[%clk 0:02:39.1]} 7... fxe5 {[%clk 0:02:48.6]} 8. dxe5 {[%clk 0:02:38.8]}
8... Qh4 {[%clk 0:02:46]} 9. O-O {[%clk 0:02:34.4]} 9... Qxh5 {[%clk 0:02:41.8]}
10. Bf4 {[%clk 0:02:33.8]} 10... Nh6 {[%clk 0:02:39.2]} 11. c4 {[%clk
0:02:29.9]} 11... Ng4 {[%clk 0:02:34.7]} 12. cxd5 {[%clk 0:02:19.6]} 12... exd5
{[%clk 0:02:33.6]} 13. Qd4 {[%clk 0:02:16.2]} 13... Nd7 {[%clk 0:02:29]} 14. e6
{[%clk 0:02:11.6]} 14... Bc5 {[%clk 0:02:28.6]} 15. exd7+ {[%clk 0:02:09.7]}
15... Kxd7 {[%clk 0:02:27.2]} 16. Qxc5 {[%clk 0:02:09.6]} 16... Qg6 {[%clk
0:02:17.1]} 17. Nc3 {[%clk 0:02:05.2]} 17... b6 {[%clk 0:02:11.1]} 18. Qd4
{[%clk 0:02:00.4]} 18... Rad8 {[%clk 0:02:09]} 19. Nxd5 {[%clk 0:01:55.1]} 19...
cxd5 {[%clk 0:02:08.6]} 20. Qxd5+ {[%clk 0:01:56]} 20... Ke7 {[%clk 0:02:08.5]}
21. Bg5+ {[%clk 0:01:54.2]} 21... Nf6 {[%clk 0:02:04.6]} 22. Qe5+ {[%clk
0:01:54.1]} 22... Kf7 {[%clk 0:02:04]} 23. Bxf6 {[%clk 0:01:47.6]} 23... gxf6
{[%clk 0:02:03.7]} 24. Qc7+ {[%clk 0:01:47.3]} 24... Ke6 {[%clk 0:02:01.8]} 25.
Qc6+ {[%clk 0:01:37.5]} 25... Ke7 {[%clk 0:02:01.6]} 26. Rfd1 {[%clk 0:01:35]}
26... Rhg8 {[%clk 0:01:59.1]} 27. Rxd8 {[%clk 0:01:34.2]} 27... Kxd8 {[%clk
0:01:58]} 28. Rd1+ {[%clk 0:01:33.4]} 28... Ke7 {[%clk 0:01:56.6]} 29. Rd7+
{[%clk 0:01:33.3]} 29... Kf8 {[%clk 0:01:56.5]} 30. Qc8+ {[%clk 0:01:32.8]}
30... Qe8 {[%clk 0:01:53.9]} 31. Rd8 {[%clk 0:01:32.3]} 31... Kg7 {[%clk
0:01:54.5]} 32. Rxe8 {[%clk 0:01:32]} 32... Kf7 {[%clk 0:01:53.5]} 33. Rxg8
{[%clk 0:01:31.4]} 1-0

[Event "Late-Titled-Tuesday-Blitz-September-19-2023"]
[Site "Chess.com"]
[Date "2023.09.19"]
[Round "3"]
[White "Kleyton_Lima"]
[Black "temus_galaktionov"]
[Result "0-1"]
[WhiteElo "2545"]
[BlackElo "2833"]
[TimeControl "180+1"]
[EndTime "14:23:43 PDT"]
[Termination "temus_galaktionov won by resignation"]

1. e4 {[%clk 0:03:00.9]} 1... c6 {[%clk 0:03:00.9]} 2. d4 {[%clk 0:03:00.7]}
2... g6 {[%clk 0:03:01.8]} 3. Nc3 {[%clk 0:03:00.3]} 3... d6 {[%clk 0:03:02.7]}
4. f4 {[%clk 0:03:00.8]} 4... Bg7 {[%clk 0:03:02.9]} 5. Nf3 {[%clk 0:03:01.3]}
5... Nd7 {[%clk 0:03:02.8]} 6. Be3 {[%clk 0:02:37.8]} 6... e5 {[%clk 0:03:02.5]}
7. Bc4 {[%clk 0:02:24.2]} 7... Qe7 {[%clk 0:03:00.9]} 8. O-O {[%clk 0:02:22.5]}
8... Ngf6 {[%clk 0:03:00.8]} 9. dxe5 {[%clk 0:02:18.6]} 9... dxe5 {[%clk
0:03:01.7]} 10. f5 {[%clk 0:02:18.2]} 10... Ng4 {[%clk 0:03:01.7]} 11. Qe2
{[%clk 0:02:10.8]} 11... Nxe3 {[%clk 0:03:01.4]} 12. Qxe3 {[%clk 0:02:11.1]}
12... b5 {[%clk 0:03:01.4]} 13. Bb3 {[%clk 0:02:10.2]} 13... Qc5 {[%clk
0:03:01.5]} 14. Qxc5 {[%clk 0:02:07.9]} 14... Nxc5 {[%clk 0:03:02.4]} 15. fxg6
{[%clk 0:01:50.6]} 15... hxg6 {[%clk 0:03:03.3]} 16. Ng5 {[%clk 0:01:47.6]}
16... Nxb3 {[%clk 0:03:03.2]} 17. axb3 {[%clk 0:01:47.1]} 17... f6 {[%clk
0:03:03.2]} 18. Nf3 {[%clk 0:01:46.3]} 18... Bf8 {[%clk 0:03:03.2]} 19. g3
{[%clk 0:01:43.5]} 19... Bc5+ {[%clk 0:03:03.1]} 20. Kg2 {[%clk 0:01:43.7]}
20... Bh3+ {[%clk 0:03:02.8]} 21. Kh1 {[%clk 0:01:44.3]} 21... Bxf1 {[%clk
0:03:02.6]} 22. Rxf1 {[%clk 0:01:45.2]} 22... Rd8 {[%clk 0:02:56.3]} 23. Ra1
{[%clk 0:01:44.5]} 23... g5 {[%clk 0:02:54.6]} 24. g4 {[%clk 0:01:42.9]} 24...
Rh7 {[%clk 0:02:51.2]} 25. Kg2 {[%clk 0:01:42.8]} 25... Rhd7 {[%clk 0:02:48.9]}
26. Kf1 {[%clk 0:01:38.4]} 26... Bb6 {[%clk 0:02:47.5]} 27. Ke2 {[%clk
0:01:35.8]} 27... Kf7 {[%clk 0:02:47.3]} 28. Nd1 {[%clk 0:01:27]} 28... a5
{[%clk 0:02:45]} 29. c3 {[%clk 0:01:25.6]} 29... Ra8 {[%clk 0:02:43.4]} 30. Ne3
{[%clk 0:01:23.6]} 30... Bxe3 {[%clk 0:02:43.1]} 31. Kxe3 {[%clk 0:01:24.5]}
31... a4 {[%clk 0:02:43.5]} 32. b4 {[%clk 0:01:20.2]} 32... a3 {[%clk
0:02:40.5]} 33. bxa3 {[%clk 0:01:19.2]} 33... Rda7 {[%clk 0:02:40.6]} 34. Rd1
{[%clk 0:01:19.1]} 34... Ke7 {[%clk 0:02:40.8]} 35. h4 {[%clk 0:01:18.9]} 35...
gxh4 {[%clk 0:02:39.5]} 36. Nxh4 {[%clk 0:01:19.8]} 36... Rxa3 {[%clk
0:02:39.6]} 37. Nf5+ {[%clk 0:01:18.8]} 37... Ke8 {[%clk 0:02:39.9]} 38. Rd3
{[%clk 0:01:13.3]} 38... R8a7 {[%clk 0:02:39.4]} 39. Rd6 {[%clk 0:01:08.8]}
39... Rxc3+ {[%clk 0:02:38.9]} 40. Kd2 {[%clk 0:01:09.1]} 40... Rh3 {[%clk
0:02:33.8]} 41. Rxc6 {[%clk 0:01:05.1]} 41... Ra2+ {[%clk 0:02:33.5]} 0-1

[Event "Late-Titled-Tuesday-Blitz-September-19-2023"]
[Site "Chess.com"]
[Date "2023.09.19"]
[Round "3"]
[White "MelihKaanCan"]
[Black "chessprincesa1"]
[Result "1-0"]
[WhiteElo "2407"]
[BlackElo "2237"]
[TimeControl "180+1"]
[EndTime "14:23:44 PDT"]
[Termination "MelihKaanCan won by resignation"]

1. e4 {[%clk 0:03:00.9]} 1... e5 {[%clk 0:02:37.9]} 2. Nf3 {[%clk 0:02:55]} 2...
Nc6 {[%clk 0:02:37.5]} 3. Bb5 {[%clk 0:02:54.3]} 3... a6 {[%clk 0:02:36.8]} 4.
Ba4 {[%clk 0:02:55]} 4... Nf6 {[%clk 0:02:35.5]} 5. d4 {[%clk 0:02:54.1]} 5...
b5 {[%clk 0:02:30.1]} 6. dxe5 {[%clk 0:02:54]} 6... bxa4 {[%clk 0:02:28.7]} 7.
exf6 {[%clk 0:02:54.5]} 7... Qxf6 {[%clk 0:02:28.8]} 8. Nc3 {[%clk 0:02:54.9]}
8... Bb4 {[%clk 0:02:27.2]} 9. Bd2 {[%clk 0:02:53.3]} 9... O-O {[%clk
0:02:26.8]} 10. O-O {[%clk 0:02:53.1]} 10... a3 {[%clk 0:02:26.8]} 11. Nd5
{[%clk 0:02:50.2]} 11... Qd6 {[%clk 0:02:22.7]} 12. Bf4 {[%clk 0:02:16.5]} 12...
Qc5 {[%clk 0:02:20.7]} 13. b3 {[%clk 0:01:54.3]} 13... Bc3 {[%clk 0:01:57.1]}
14. Rb1 {[%clk 0:01:44.8]} 14... Nb4 {[%clk 0:01:45.6]} 15. Be3 {[%clk
0:01:35.2]} 1-0

[Event "Late-Titled-Tuesday-Blitz-September-19-2023"]
[Site "Chess.com"]
[Date "2023.09.19"]
[Round "3"]
[White "Balla_Tamas"]
[Black "aNaartjieZA"]
[Result "0-1"]
[WhiteElo "2427"]
[BlackElo "2595"]
[TimeControl "180+1"]
[EndTime "14:23:49 PDT"]
[Termination "aNaartjieZA won by resignation"]

1. e4 {[%clk 0:03:00.9]} 1... e6 {[%clk 0:03:00.1]} 2. d4 {[%clk 0:03:00.8]}
2... d5 {[%clk 0:03:00.4]} 3. Nd2 {[%clk 0:03:01.6]} 3... Nf6 {[%clk 0:03:00.4]}
4. e5 {[%clk 0:03:01.8]} 4... Nfd7 {[%clk 0:03:01]} 5. Bd3 {[%clk 0:03:02.5]}
5... c5 {[%clk 0:03:01.4]} 6. c3 {[%clk 0:03:03.3]} 6... Nc6 {[%clk 0:03:01.8]}
7. Ne2 {[%clk 0:03:03.6]} 7... cxd4 {[%clk 0:02:59.1]} 8. cxd4 {[%clk
0:03:04.5]} 8... f6 {[%clk 0:02:59.4]} 9. exf6 {[%clk 0:03:03.7]} 9... Nxf6
{[%clk 0:02:59.6]} 10. Nf3 {[%clk 0:03:03.8]} 10... Bd6 {[%clk 0:02:59.9]} 11.
O-O {[%clk 0:03:03.9]} 11... O-O {[%clk 0:03:00.1]} 12. Bg5 {[%clk 0:03:03.9]}
12... Qc7 {[%clk 0:02:57.5]} 13. h3 {[%clk 0:03:04.2]} 13... Bd7 {[%clk
0:02:57.4]} 14. Nc3 {[%clk 0:03:00.8]} 14... a6 {[%clk 0:02:56.8]} 15. Rc1
{[%clk 0:03:00.8]} 15... Be8 {[%clk 0:02:51.2]} 16. a3 {[%clk 0:02:59.1]} 16...
Bh5 {[%clk 0:02:50.3]} 17. Be2 {[%clk 0:02:43.4]} 17... Bf4 {[%clk 0:02:44.2]}
18. Bxf4 {[%clk 0:02:36.2]} 18... Qxf4 {[%clk 0:02:43.8]} 19. Na4 {[%clk
0:02:20.8]} 19... Bxf3 {[%clk 0:02:40.6]} 20. Bxf3 {[%clk 0:02:21.7]} 20... Nxd4
{[%clk 0:02:40.4]} 21. Be2 {[%clk 0:02:06.7]} 21... Nxe2+ {[%clk 0:02:39.2]} 22.
Qxe2 {[%clk 0:02:06.3]} 22... Qxa4 {[%clk 0:02:39.4]} 23. Rc7 {[%clk 0:02:04.6]}
23... Qe4 {[%clk 0:02:35.3]} 24. Qd2 {[%clk 0:01:53.3]} 24... Qf5 {[%clk
0:02:33.2]} 25. Rxb7 {[%clk 0:01:49.4]} 25... Ne4 {[%clk 0:02:33.3]} 26. Qb4
{[%clk 0:01:49.7]} 26... Nxf2 {[%clk 0:02:23.3]} 27. Rc1 {[%clk 0:01:40.7]}
27... Nd3 {[%clk 0:02:08.5]} 28. Qe7 {[%clk 0:01:37.5]} 28... Rf7 {[%clk
0:01:47.7]} 0-1

[Event "Late-Titled-Tuesday-Blitz-September-19-2023"]
[Site "Chess.com"]
[Date "2023.09.19"]
[Round "3"]
[White "Road2GM3000"]
[Black "Iball95"]
[Result "0-1"]
[WhiteElo "2500"]
[BlackElo "2758"]
[TimeControl "180+1"]
[EndTime "14:23:50 PDT"]
[Termination "Iball95 won by checkmate"]

1. d4 {[%clk 0:03:00.9]} 1... d5 {[%clk 0:03:00.3]} 2. c4 {[%clk 0:03:00.8]}
2... e6 {[%clk 0:03:00.6]} 3. cxd5 {[%clk 0:03:00.9]} 3... exd5 {[%clk
0:03:01.5]} 4. Nc3 {[%clk 0:03:01]} 4... c6 {[%clk 0:03:01.1]} 5. Nf3 {[%clk
0:03:01.6]} 5... Bd6 {[%clk 0:03:01.2]} 6. Bg5 {[%clk 0:03:01.5]} 6... Qb6
{[%clk 0:03:01.4]} 7. Qb3 {[%clk 0:03:01]} 7... h6 {[%clk 0:03:00.4]} 8. Bh4
{[%clk 0:03:00.3]} 8... Bf5 {[%clk 0:02:59.1]} 9. e3 {[%clk 0:03:00.4]} 9... Nd7
{[%clk 0:02:54.2]} 10. Be2 {[%clk 0:03:00.1]} 10... Ngf6 {[%clk 0:02:53.1]} 11.
O-O {[%clk 0:02:59]} 11... O-O {[%clk 0:02:53.4]} 12. Rfd1 {[%clk 0:02:59.2]}
12... Rfe8 {[%clk 0:02:53.9]} 13. Bd3 {[%clk 0:02:58.6]} 13... Bg4 {[%clk
0:02:48.6]} 14. Qc2 {[%clk 0:02:55.7]} 14... a5 {[%clk 0:02:39.3]} 15. Bg3
{[%clk 0:02:55.4]} 15... Bxg3 {[%clk 0:02:33.7]} 16. hxg3 {[%clk 0:02:55.3]}
16... Qd8 {[%clk 0:02:21.6]} 17. Rac1 {[%clk 0:02:53.1]} 17... Qe7 {[%clk
0:02:21.1]} 18. Ne2 {[%clk 0:02:48.3]} 18... Ne4 {[%clk 0:02:19.2]} 19. Nd2
{[%clk 0:02:44.5]} 19... Nxf2 {[%clk 0:02:17.4]} 20. Kxf2 {[%clk 0:02:25]} 20...
Qxe3+ {[%clk 0:02:17]} 21. Kf1 {[%clk 0:02:25.7]} 21... Bxe2+ {[%clk 0:02:12.5]}
22. Bxe2 {[%clk 0:02:26.6]} 22... Qxe2+ {[%clk 0:02:13.4]} 23. Kg1 {[%clk
0:02:27.3]} 23... Qe3+ {[%clk 0:02:07.5]} 24. Kh2 {[%clk 0:02:26.8]} 24... Nf6
{[%clk 0:02:05.4]} 25. Nf3 {[%clk 0:02:26]} 25... Ng4+ {[%clk 0:02:04.1]} 26.
Kh1 {[%clk 0:02:20.3]} 26... Nf2+ {[%clk 0:01:58.9]} 27. Kh2 {[%clk 0:02:20.9]}
27... Nxd1 {[%clk 0:01:58.8]} 28. Rxd1 {[%clk 0:02:21.8]} 28... Qe4 {[%clk
0:01:52.6]} 29. Qb3 {[%clk 0:02:18.6]} 29... b5 {[%clk 0:01:42]} 30. Qc3 {[%clk
0:02:18.1]} 30... Re6 {[%clk 0:01:41.2]} 31. Re1 {[%clk 0:02:14.8]} 31... Qf5
{[%clk 0:01:33.9]} 32. Ne5 {[%clk 0:02:13.3]} 32... Rae8 {[%clk 0:01:27.3]} 33.
g4 {[%clk 0:02:12.7]} 33... Qf4+ {[%clk 0:01:26.3]} 34. g3 {[%clk 0:02:11.2]}
34... Qf2+ {[%clk 0:01:26.5]} 35. Kh3 {[%clk 0:02:11.9]} 35... f6 {[%clk
0:01:26.3]} 36. Nd3 {[%clk 0:02:08.9]} 36... Qf3 {[%clk 0:01:25.5]} 37. Rxe6
{[%clk 0:02:03.6]} 37... Qh1# {[%clk 0:01:24.9]} 0-1

[Event "Late-Titled-Tuesday-Blitz-September-19-2023"]
[Site "Chess.com"]
[Date "2023.09.19"]
[Round "3"]
[White "Heinza9"]
[Black "Dacean99"]
[Result "0-1"]
[WhiteElo "2297"]
[BlackElo "2497"]
[TimeControl "180+1"]
[EndTime "14:24:12 PDT"]
[Termination "Dacean99 won by resignation"]

1. e4 {[%clk 0:03:00.9]} 1... e6 {[%clk 0:02:58.9]} 2. c4 {[%clk 0:03:00.2]}
2... d5 {[%clk 0:02:58.4]} 3. cxd5 {[%clk 0:03:00.4]} 3... exd5 {[%clk
0:02:59.3]} 4. exd5 {[%clk 0:03:00.8]} 4... Nf6 {[%clk 0:02:54.9]} 5. Nc3 {[%clk
0:03:00.9]} 5... Nxd5 {[%clk 0:02:54.6]} 6. d4 {[%clk 0:02:59.3]} 6... Be7
{[%clk 0:02:54.1]} 7. Bc4 {[%clk 0:02:59.3]} 7... Be6 {[%clk 0:02:53]} 8. Qb3
{[%clk 0:02:54.7]} 8... Nxc3 {[%clk 0:02:47.8]} 9. Bxe6 {[%clk 0:02:51.6]} 9...
fxe6 {[%clk 0:02:47.9]} 10. bxc3 {[%clk 0:02:50.1]} 10... Qd5 {[%clk 0:02:47]}
11. Nf3 {[%clk 0:02:46.2]} 11... O-O {[%clk 0:02:43.9]} 12. O-O {[%clk
0:02:38.2]} 12... Nc6 {[%clk 0:02:41]} 13. Re1 {[%clk 0:02:31.2]} 13... Bd6
{[%clk 0:02:35.8]} 14. c4 {[%clk 0:02:21.1]} 14... Qh5 {[%clk 0:02:32.4]} 15. c5
{[%clk 0:02:15.5]} 15... Rxf3 {[%clk 0:02:27.5]} 16. Qxe6+ {[%clk 0:02:07.9]}
16... Rf7 {[%clk 0:02:26]} 17. cxd6 {[%clk 0:02:05.4]} 17... cxd6 {[%clk
0:02:11.7]} 18. Be3 {[%clk 0:01:25.2]} 18... d5 {[%clk 0:02:07.9]} 19. Rab1
{[%clk 0:01:23.3]} 19... Rf8 {[%clk 0:02:04.2]} 20. Rxb7 {[%clk 0:01:17.6]}
20... Nd8 {[%clk 0:02:04]} 0-1

[Event "Late-Titled-Tuesday-Blitz-September-19-2023"]
[Site "Chess.com"]
[Date "2023.09.19"]
[Round "3"]
[White "Guzman70"]
[Black "Zkid"]
[Result "1/2-1/2"]
[WhiteElo "2303"]
[BlackElo "2933"]
[TimeControl "180+1"]
[EndTime "14:24:14 PDT"]
[Termination "Game drawn by repetition"]

1. Nf3 {[%clk 0:03:00.9]} 1... d5 {[%clk 0:03:00.2]} 2. d4 {[%clk 0:03:01]} 2...
Nf6 {[%clk 0:02:59.6]} 3. Bf4 {[%clk 0:03:01]} 3... c6 {[%clk 0:03:00.1]} 4. e3
{[%clk 0:03:00.9]} 4... Bf5 {[%clk 0:03:00.4]} 5. c4 {[%clk 0:03:00.5]} 5... e6
{[%clk 0:03:00.9]} 6. Qb3 {[%clk 0:03:00.6]} 6... Qb6 {[%clk 0:02:58]} 7. c5
{[%clk 0:03:01]} 7... Qxb3 {[%clk 0:02:58.2]} 8. axb3 {[%clk 0:03:01.9]} 8...
Nbd7 {[%clk 0:02:58.2]} 9. b4 {[%clk 0:03:02.2]} 9... a6 {[%clk 0:02:50.6]} 10.
b5 {[%clk 0:02:53.1]} 10... cxb5 {[%clk 0:02:51.5]} 11. Bxb5 {[%clk 0:02:51.4]}
11... Bxb1 {[%clk 0:02:51.2]} 12. Bxd7+ {[%clk 0:02:49.9]} 12... Nxd7 {[%clk
0:02:49.6]} 13. Rxb1 {[%clk 0:02:50.8]} 13... Be7 {[%clk 0:02:46.9]} 14. b4
{[%clk 0:02:50.2]} 14... O-O {[%clk 0:02:42.5]} 15. Kd2 {[%clk 0:02:50]} 15...
Nf6 {[%clk 0:02:39.4]} 16. Rhf1 {[%clk 0:02:40.4]} 16... Ne4+ {[%clk 0:02:36.7]}
17. Kd3 {[%clk 0:02:39.5]} 17... g5 {[%clk 0:02:35.6]} 18. Bg3 {[%clk
0:02:34.8]} 18... h5 {[%clk 0:02:27]} 19. Nd2 {[%clk 0:02:24.9]} 19... f5 {[%clk
0:02:23]} 20. Be5 {[%clk 0:02:20.4]} 20... Nf6 {[%clk 0:02:18.2]} 21. f4 {[%clk
0:02:17.1]} 21... Nd7 {[%clk 0:02:13.7]} 22. Nf3 {[%clk 0:02:14]} 22... g4
{[%clk 0:02:11.3]} 23. Nd2 {[%clk 0:02:12.9]} 23... Rfc8 {[%clk 0:01:59.9]} 24.
Nb3 {[%clk 0:02:10.9]} 24... Bd8 {[%clk 0:01:54.2]} 25. Ra1 {[%clk 0:02:09.3]}
25... Nb8 {[%clk 0:01:51.1]} 26. Bxb8 {[%clk 0:02:08]} 26... Raxb8 {[%clk
0:01:50]} 27. Rfb1 {[%clk 0:02:03.1]} 27... Kf7 {[%clk 0:01:48.9]} 28. Na5
{[%clk 0:02:03]} 28... Ke7 {[%clk 0:01:47.6]} 29. b5 {[%clk 0:02:03.3]} 29...
axb5 {[%clk 0:01:45.8]} 30. Rxb5 {[%clk 0:02:04.2]} 30... Bxa5 {[%clk
0:01:45.2]} 31. Raxa5 {[%clk 0:01:59.3]} 31... Kd7 {[%clk 0:01:44.9]} 32. Ra7
{[%clk 0:01:57]} 32... Kc7 {[%clk 0:01:43.2]} 33. Rb6 {[%clk 0:01:54.4]} 33...
Re8 {[%clk 0:01:40.5]} 34. Kc3 {[%clk 0:01:49.2]} 34... h4 {[%clk 0:01:39.3]}
35. Kb4 {[%clk 0:01:48.2]} 35... Re7 {[%clk 0:01:39.3]} 36. Kb5 {[%clk
0:01:47.8]} 36... Kc8 {[%clk 0:01:37.8]} 37. Rd6 {[%clk 0:01:40.3]} 37... Kc7
{[%clk 0:01:34.4]} 38. Rb6 {[%clk 0:01:35.5]} 38... Kc8 {[%clk 0:01:32.6]} 39.
Rd6 {[%clk 0:01:28.7]} 39... Kc7 {[%clk 0:01:27.9]} 40. Rb6 {[%clk 0:01:28.6]}
1/2-1/2

[Event "Late-Titled-Tuesday-Blitz-September-19-2023"]
[Site "Chess.com"]
[Date "2023.09.19"]
[Round "3"]
[White "ChessSwole"]
[Black "colegiodemadrid"]
[Result "1-0"]
[WhiteElo "2707"]
[BlackElo "2486"]
[TimeControl "180+1"]
[EndTime "14:24:22 PDT"]
[Termination "ChessSwole won by resignation"]

1. d4 {[%clk 0:03:00.9]} 1... Nf6 {[%clk 0:02:59.1]} 2. c4 {[%clk 0:03:00.8]}
2... g6 {[%clk 0:02:56.5]} 3. Nc3 {[%clk 0:03:01.2]} 3... Bg7 {[%clk 0:02:56.9]}
4. e4 {[%clk 0:03:01.7]} 4... d6 {[%clk 0:02:57.2]} 5. Nf3 {[%clk 0:03:02.3]}
5... O-O {[%clk 0:02:56.2]} 6. Be2 {[%clk 0:03:02.8]} 6... e5 {[%clk 0:02:56.4]}
7. O-O {[%clk 0:03:03.1]} 7... exd4 {[%clk 0:02:57.2]} 8. Nxd4 {[%clk
0:03:03.4]} 8... Re8 {[%clk 0:02:57.9]} 9. f3 {[%clk 0:03:03.5]} 9... c6 {[%clk
0:02:58.2]} 10. Nc2 {[%clk 0:02:59.9]} 10... d5 {[%clk 0:02:51.8]} 11. exd5
{[%clk 0:02:51.7]} 11... cxd5 {[%clk 0:02:52.6]} 12. cxd5 {[%clk 0:02:48.9]}
12... Na6 {[%clk 0:02:52.5]} 13. Kh1 {[%clk 0:02:45.9]} 13... h5 {[%clk
0:02:33.5]} 14. Bg5 {[%clk 0:02:45]} 14... Qb6 {[%clk 0:02:29.7]} 15. Qd2 {[%clk
0:02:36.4]} 15... Bd7 {[%clk 0:02:25.6]} 16. Na3 {[%clk 0:02:24.9]} 16... Nh7
{[%clk 0:02:10]} 17. Nc4 {[%clk 0:02:23]} 17... Qb4 {[%clk 0:02:04.2]} 18. Ne4
{[%clk 0:02:14.5]} 18... Nxg5 {[%clk 0:01:52.5]} 19. Qxg5 {[%clk 0:02:15.4]}
19... Bb5 {[%clk 0:01:28.3]} 20. a3 {[%clk 0:02:10.1]} 20... Qf8 {[%clk
0:01:22.1]} 21. Rfe1 {[%clk 0:02:00.1]} 21... Bxc4 {[%clk 0:01:10.2]} 22. Bxc4
{[%clk 0:02:00]} 22... Bxb2 {[%clk 0:01:02.3]} 23. Rab1 {[%clk 0:01:59.1]} 23...
Bg7 {[%clk 0:01:01.7]} 24. Rxb7 {[%clk 0:01:55.1]} 24... Nc5 {[%clk 0:01:01.7]}
25. Rc7 {[%clk 0:01:43.6]} 25... Nxe4 {[%clk 0:01:01.1]} 26. fxe4 {[%clk
0:01:44.5]} 26... Rxe4 {[%clk 0:00:53.2]} 27. Rxe4 {[%clk 0:01:41.4]} 1-0